bitfinex/quotes_SOLUSD_20220212
["timestamp","ask_amount","ask_price","bid_price","bid_amount"]
[1644682135189,2.93616081,95.777,95.67,12.65]
[1644682135390,5.223,95.776,95.67,12.65]
[1644682135592,2.93616081,95.775,95.67,12.65]
[1644682135790,5.223,95.774,95.67,51.29405457]
[1644682135999,2.93616081,95.773,95.67,51.29405457]
[1644682136191,36.89826065,95.772,95.67,51.29405457]
[1644682136391,42.12126065,95.772,95.67,51.29405457]
[1644682136590,2.93616081,95.771,95.67,51.29405457]
[1644682136791,5.223,95.77,95.67,51.29405457]
[1644682136992,2.93616081,95.769,95.67,51.29405457]
[1644682137191,2.93616081,95.769,95.671,2.62390296]
[1644682137392,5.223,95.768,95.67,51.29405457]
[1644682137791,2.93616081,95.767,95.67,51.29405457]
[1644682137993,5.223,95.769,95.67,51.29405457]
[1644682138199,2.93616081,95.768,95.67,51.29405457]
[1644682138392,36.89826065,95.772,95.67,51.29405457]
[1644682138393,8.15916081,95.771,95.67,51.29405457]
[1644682138592,15.6804,95.76,95.67,51.29405457]
[1644682138793,8.15916081,95.759,95.67,51.29405457]
[1644682138993,2.93616081,95.758,95.67,51.29405457]
[1644682139197,45.64059284,95.757,95.67,51.29405457]
[1644682139394,5.223,95.756,95.67,51.29405457]
[1644682139599,8.15916081,95.756,95.67,51.29405457]
[1644682139896,2.93616081,95.755,95.67,12.65]
[1644682140097,5.223,95.754,95.67,12.65]
[1644682140299,5.223,95.754,95.65,12.65]
[1644682140495,2.93616081,95.753,95.65,12.65]
[1644682140896,5.224,95.752,95.651,36.06973107]
[1644682141096,2.93616081,95.751,95.651,36.06973107]
[1644682141297,2.93616081,95.754,95.651,36.06973107]
[1644682141498,5.224,95.754,95.651,36.06973107]
[1644682141698,2.93616081,95.755,95.651,36.06973107]
[1644682141898,5.224,95.754,95.651,36.06973107]
[1644682142099,2.93616081,95.753,95.651,36.06973107]
[1644682142598,5.224,95.752,95.651,36.06973107]
[1644682142998,2.93616081,95.751,95.651,36.06973107]
[1644682143402,2.93616081,95.753,95.651,36.06973107]
[1644682143797,5.224,95.752,95.651,36.06973107]
[1644682144199,2.93616081,95.751,95.651,36.06973107]
[1644682144617,5.224,95.75,95.651,36.06973107]
[1644682144817,2.93616081,95.749,95.651,36.06973107]
[1644682145016,5.224,95.754,95.651,36.06973107]
[1644682145218,2.93616081,95.755,95.651,36.06973107]
[1644682145219,2.93616081,95.753,95.66,15.6767]
[1644682145423,2.93616081,95.753,95.67,12.65]
[1644682145619,29.3074,95.774,95.67,12.65]
[1644682145620,24.0834,95.774,95.671,106.0]
[1644682145820,28.84781037,95.801,95.671,106.0]
[1644682145821,5.224,95.796,95.671,119.7665773]
[1644682146018,4.36881037,95.815,95.68,158.18]
[1644682146220,2.94598528,95.795,95.68,158.18]
[1644682146419,38.32965305,95.8,95.691,34.97617292]
[1644682146420,2.94598528,95.799,95.691,34.97617292]
[1644682146618,2.94598528,95.799,95.7,12.65]
[1644682147020,5.221,95.798,95.7,12.65]
[1644682147220,2.94598528,95.797,95.67,12.65]
[1644682147421,15.6743,95.79,95.67,12.65]
[1644682147619,5.223,95.789,95.67,12.65]
[1644682147821,2.94598528,95.788,95.67,12.65]
[1644682148021,5.223,95.787,95.671,30.48445476]
[1644682148424,2.94598528,95.786,95.671,30.48445476]
[1644682148620,42.12344592,95.785,95.671,30.48445476]
[1644682148824,2.94598528,95.784,95.672,0.25]
[1644682149123,8.16898528,95.784,95.672,2.87390296]
[1644682149328,8.16898528,95.784,95.673,2.62390296]
[1644682149523,2.94598528,95.783,95.673,2.62390296]
[1644682149723,15.6762,95.78,95.673,2.62390296]
[1644682149922,8.16898528,95.779,95.673,2.62390296]
[1644682150125,2.94598528,95.778,95.673,2.62390296]
[1644682150327,5.223,95.777,95.673,2.62390296]
[1644682150526,2.94598528,95.776,95.673,2.62390296]
[1644682151026,2.94598528,95.778,95.673,2.62390296]
[1644682151225,5.223,95.777,95.673,2.62390296]
[1644682151523,2.94598528,95.776,95.673,2.62390296]
[1644682151929,5.223,95.775,95.673,2.62390296]
[1644682152132,5.223,95.779,95.674,5.223]
[1644682152331,42.12344592,95.785,95.674,5.223]
[1644682152532,5.223,95.784,95.675,2.62390296]
[1644682152731,5.223,95.784,95.68,15.6735]
[1644682152933,42.12344592,95.785,95.691,106.0]
[1644682153233,42.12344592,95.785,95.692,9.72994177]
[1644682153433,42.12344592,95.785,95.693,106.0]
[1644682153636,42.12344592,95.785,95.694,5.222]
[1644682153834,42.12344592,95.785,95.693,108.62390296]
[1644682154035,42.12344592,95.785,95.694,2.62390296]
[1644682154834,42.12344592,95.785,95.7,15.6693]
[1644682155134,42.12344592,95.785,95.71,12.65]
[1644682155336,42.12344592,95.785,95.711,30.41894068]
[1644682155534,42.12344592,95.785,95.711,33.04284364]
[1644682155835,45.7873,95.816,95.72,15.667]
[1644682156037,4.36881037,95.828,95.73,12.65]
[1644682156239,4.36881037,95.842,95.73,12.65]
[1644682156433,4.36881037,95.842,95.731,7.84390296]
[1644682156637,42.8883436,95.855,95.732,9.79545585]
[1644682156837,5.219,95.854,95.732,23.48981092]
[1644682157036,7.07520495,95.854,95.733,2.62390296]
[1644682157236,7.07520495,95.854,95.733,13.69435507]
[1644682157436,1.85620495,95.853,95.734,117.07045211]
[1644682157636,1.85620495,95.853,95.735,5.219]
[1644682157837,1.85620495,95.852,95.752,106.0]
[1644682158038,1.85620495,95.852,95.76,12.65]
[1644682158244,1.85620495,95.851,95.76,20.8]
[1644682158438,1.85620495,95.851,95.761,7.84190296]
[1644682158637,5.218,95.854,95.761,7.84190296]
[1644682158840,5.218,95.854,95.762,2.62390296]
[1644682159538,1.84586141,95.853,95.762,2.62390296]
[1644682159737,5.218,95.852,95.77,15.6589]
[1644682159943,1.84586141,95.853,95.78,12.65]
[1644682160339,1.84586141,95.854,95.78,12.65]
[1644682160542,1.84586141,95.854,95.781,2.62390296]
[1644682160841,5.218,95.853,95.781,2.62390296]
[1644682161640,5.218,95.866,95.781,2.62390296]
[1644682161840,5.218,95.866,95.78,12.65]
[1644682162040,40.96111115,95.865,95.78,12.65]
[1644682162240,5.216,95.864,95.78,12.65]
[1644682162640,1.85014522,95.863,95.78,12.65]
[1644682162841,5.218,95.862,95.78,12.65]
[1644682163742,5.218,95.862,95.76,18.28350296]
[1644682163743,15.6632,95.86,95.76,2.62390296]
[1644682163947,5.218,95.859,95.74,15.6628]
[1644682164141,5.218,95.859,95.741,2.62390296]
[1644682164342,1.85014522,95.858,95.741,2.62390296]
[1644682164842,106.0,95.849,95.741,2.62390296]
[1644682165042,5.219,95.848,95.731,2.62390296]
[1644682165241,31.03584522,95.848,95.731,2.62390296]
[1644682165443,106.0,95.847,95.731,2.62390296]
[1644682165644,5.219,95.846,95.731,2.62390296]
[1644682165843,35.11204429,95.845,95.732,31.89194076]
[1644682166043,5.219,95.844,95.732,31.89194076]
[1644682166245,5.219,95.844,95.732,2.62390296]
[1644682166449,4.47404818,95.843,95.691,5.219]
[1644682166646,15.668,95.83,95.7,12.65]
[1644682166846,106.0,95.828,95.7,12.65]
[1644682167046,5.221,95.827,95.7,12.65]
[1644682167249,47.07413231,95.826,95.701,36.00591044]
[1644682167449,5.221,95.825,95.711,106.0]
[1644682167649,7.07114522,95.825,95.72,15.6664]
[1644682167847,7.07114522,95.825,95.73,12.65]
[1644682168048,1.85014522,95.824,95.73,12.65]
[1644682168247,1.85014522,95.824,95.731,5.22]
[1644682168452,7.07014522,95.823,95.73,12.65]
[1644682168646,1.85014522,95.823,95.73,12.65]
[1644682168848,1.85014522,95.822,95.731,5.47]
[1644682169050,1.85014522,95.822,95.731,11.97390296]
[1644682169248,48.5657,95.859,95.733,63.0]
[1644682169451,4.36881037,95.866,95.74,158.18]
[1644682169649,1.85384539,95.858,95.76,158.18]
[1644682169848,1.85384539,95.858,95.77,12.65]
[1644682170049,41.34416836,95.867,95.771,106.0]
[1644682170675,41.34416836,95.867,95.78,15.6545]
[1644682170951,105.7382229,95.891,95.869,2.62390296]
[1644682171150,81.14671043,95.891,95.869,2.62390296]
[1644682171350,42.22162011,95.953,95.88,12.65]
[1644682171552,42.22162011,95.953,95.89,12.65]
[1644682171754,34.33597162,95.952,95.9,12.65]
[1644682172051,33.83597162,95.952,95.86,52.1439]
[1644682172250,5.213,95.951,95.832,5.213]
[1644682172451,5.213,95.951,95.823,2.62390296]
[1644682172651,105.49740296,95.951,95.83,12.65]
[1644682172848,2.62390296,95.95,95.82,12.65]
[1644682173049,5.214,95.949,95.82,12.65]
[1644682173256,15.6526,95.93,95.83,15.6517]
[1644682173448,38.15901016,95.929,95.84,12.65]
[1644682173651,5.214,95.951,95.84,170.83]
[1644682173850,0.36,96.05,95.841,7.83790296]
[1644682173851,5.214,95.963,95.841,7.83790296]
[1644682174053,4.36881037,95.992,95.87,158.18]
[1644682174252,4.36881037,95.992,95.881,42.0]
[1644682174253,0.02348943,95.978,95.881,42.0]
[1644682174456,0.02348943,95.978,95.88,170.83]
[1644682174851,5.212,95.977,95.88,12.65]
[1644682175249,5.212,95.977,95.88,28.2932]
[1644682175450,0.02348943,95.978,95.88,30.91710296]
[1644682175650,0.02348943,95.978,95.88,200.50710296]
[1644682176451,5.212,95.977,95.88,29.67710296]
[1644682176757,5.212,95.977,95.9,15.6399]
[1644682176951,0.02348943,95.978,95.91,12.65]
[1644682177153,5.211,95.976,95.91,12.65]
[1644682177353,38.96854712,95.975,95.91,12.65]
[1644682178353,38.96854712,95.975,95.89,15.6406]
[1644682178354,5.211,95.974,95.89,12.65]
[1644682179556,5.211,95.974,95.891,2.62390296]
[1644682179758,38.96854712,95.975,95.892,111.211]
[1644682179956,38.96854712,95.975,95.892,24.18776086]
[1644682180161,38.96854712,95.975,95.893,2.87390296]
[1644682180658,38.96854712,95.975,95.894,2.62390296]
[1644682180865,38.96854712,95.975,95.91,15.6362]
[1644682181069,0.02348943,95.978,95.92,12.65]
[1644682181466,0.02348943,95.978,95.921,2.62390296]
[1644682181867,0.02348943,95.978,95.92,12.65]
[1644682182070,0.02348943,95.978,95.92,28.2859]
[1644682182267,0.02348943,95.978,95.921,2.62390296]
[1644682182467,0.02348943,95.978,95.921,11.88390296]
[1644682182666,0.02348943,95.978,95.921,23.87315917]
[1644682182868,0.00348943,95.978,95.922,124.97676086]
[1644682183068,0.00348943,95.978,95.94,158.18]
[1644682183369,0.00348943,95.978,95.95,28.2747]
[1644682183568,0.00348943,95.978,95.951,5.21]
[1644682183769,0.00348943,95.978,95.951,7.83390296]
[1644682184373,0.00348943,95.978,95.952,2.62390296]
[1644682184769,0.00348943,95.978,95.951,5.21]
[1644682185072,0.00348943,95.978,95.96,52.0826]
[1644682185271,0.00348943,95.978,95.97,170.83]
[1644682185473,0.36,96.05,95.972,63.0]
[1644682185690,0.36,96.05,95.971,106.0]
[1644682185691,0.36,96.05,95.99,15.6176]
[1644682185897,46.58327271,96.109,96.0,158.18]
[1644682186096,24.6008,96.136,96.0,158.18]
[1644682186097,5.207,96.126,96.02,52.0455]
[1644682186293,4.535,96.14,96.05,0.36]
[1644682186496,1.45449169,96.162,96.06,12.65]
[1644682186792,5.203,96.169,96.06,12.65]
[1644682187006,39.41016726,96.168,96.061,2.62390296]
[1644682187196,5.202,96.167,96.061,2.62390296]
[1644682187394,5.202,96.167,96.06,12.65]
[1644682187395,1.45449169,96.161,96.06,12.65]
[1644682187593,39.41016726,96.168,96.06,12.65]
[1644682187795,39.41016726,96.168,96.061,5.202]
[1644682187994,5.202,96.167,96.06,12.65]
[1644682189701,0.48,96.153,96.04,12.65]
[1644682189997,46.85621302,96.151,96.03,12.65]
[1644682190197,5.203,96.15,96.03,12.65]
[1644682190801,5.203,96.15,96.031,2.62390296]
[1644682190998,46.85621302,96.151,96.031,11.82390296]
[1644682191199,5.203,96.15,96.03,12.65]
[1644682191601,46.85621302,96.151,96.032,2.62390296]
[1644682191803,46.85621302,96.151,96.06,158.18]
[1644682191997,46.85621302,96.151,96.031,36.79582118]
[1644682191998,46.85621302,96.151,96.07,12.65]
[1644682192202,5.203,96.15,96.08,12.65]
[1644682192397,46.85621302,96.151,96.09,12.65]
[1644682192800,29.8911,96.201,96.091,2.62390296]
[1644682193199,29.8911,96.201,96.09,12.65]
[1644682193798,35.59525424,96.2,96.091,2.62390296]
[1644682194000,5.2,96.199,96.09,12.65]
[1644682194199,2.62390296,96.199,96.09,12.65]
[1644682194600,2.62390296,96.198,96.09,12.65]
[1644682194903,5.2,96.197,96.091,2.62390296]
[1644682195100,5.2,96.199,96.091,2.62390296]
[1644682195302,35.59525424,96.2,96.091,12.40390296]
[1644682195502,35.59525424,96.2,96.092,48.63341072]
[1644682195802,35.59525424,96.2,96.093,0.25]
[1644682196103,5.2,96.199,96.093,51.50731368]
[1644682196302,5.2,96.217,96.094,44.61972414]
[1644682196501,5.2,96.22,96.094,162.45731368]
[1644682196700,23.975,96.221,96.094,162.45731368]
[1644682196701,23.975,96.221,96.095,51.25731368]
[1644682196901,23.975,96.221,96.1,15.6009]
[1644682197104,23.975,96.221,96.11,12.65]
[1644682197303,44.80103115,96.22,96.11,12.65]
[1644682197508,1.45449169,96.214,96.11,12.65]
[1644682197702,1.45449169,96.205,96.11,12.65]
[1644682197902,36.95542917,96.203,96.11,12.65]
[1644682198104,1.45449169,96.22,96.12,158.18]
[1644682198307,1.45449169,96.24,96.13,12.65]
[1644682198604,1.45449169,96.256,96.131,111.198]
[1644682198902,79.075,96.275,96.14,158.18]
[1644682198903,1.45449169,96.261,96.14,158.18]
[1644682199103,46.72188611,96.26,96.15,170.83]
[1644682199306,46.72188611,96.26,96.161,106.0]
[1644682199803,46.72188611,96.26,96.162,23.52998308]
[1644682200006,46.72188611,96.26,96.162,46.21183525]
[1644682200207,2.86857424,96.299,96.162,46.21183525]
[1644682200208,0.22627057,96.293,96.163,32.79547558]
[1644682200406,1.441831,96.283,96.262,2.00389109]
[1644682200614,1.44068794,96.356,96.283,21.699999]
[1644682200907,224.1659,96.419,96.29,12.65]
[1644682200908,4.12069,96.354,96.29,12.65]
[1644682201308,1.44068794,96.386,96.29,12.65]
[1644682201507,1.44068794,96.388,96.3,158.18]
[1644682201727,1.44068794,96.397,96.31,12.65]
[1644682201912,1.44068794,96.405,96.311,106.0]
[1644682202107,1.44068794,96.407,96.311,111.188]
[1644682202314,39.82088755,96.417,96.311,167.07475813]
[1644682202515,38.38019961,96.417,96.34,158.18]
[1644682202810,38.38019961,96.417,96.35,12.65]
[1644682203210,5.187,96.416,96.35,12.65]
[1644682203412,5.187,96.416,96.313,106.0]
[1644682203413,1.0,96.348,96.313,106.0]
[1644682203609,112.5,96.468,96.32,12.65]
[1644682203814,5.188,96.462,96.32,12.65]
[1644682204019,5.187,96.479,96.32,12.65]
[1644682204210,74.03048794,96.502,96.321,38.57933113]
[1644682204412,503.32513562,96.476,96.321,53.41644116]
[1644682204613,52.11884791,96.475,96.322,38.57933113]
[1644682204817,52.11884791,96.475,96.322,49.20933113]
[1644682205014,52.11884791,96.475,96.323,33.38531446]
[1644682205212,52.11884791,96.475,96.324,106.0]
[1644682205418,52.11884791,96.475,96.324,121.39236472]
[1644682205613,52.11884791,96.475,96.325,17.99294974]
[1644682205813,52.11884791,96.475,96.33,15.563]
[1644682206017,52.11884791,96.475,96.34,12.65]
[1644682206913,0.48,96.453,96.322,5.186]
[1644682207118,47.03041683,96.451,96.322,5.186]
[1644682207620,5.187,96.45,96.322,5.186]
[1644682208019,5.187,96.45,96.323,2.62390296]
[1644682208419,5.187,96.45,96.32,12.65]
[1644682208620,47.03041683,96.451,96.321,131.8038527]
[1644682208822,47.03041683,96.451,96.321,161.54451829]
[1644682209121,47.03041683,96.451,96.322,33.23292558]
[1644682209321,5.187,96.45,96.322,33.23292558]
[1644682209521,5.186,96.499,96.33,158.18]
[1644682209721,5.186,96.499,96.34,170.83]
[1644682209922,5.186,96.499,96.35,158.18]
[1644682210127,5.186,96.499,96.36,12.65]
[1644682210330,40.76449559,96.498,96.36,12.65]
[1644682210626,5.184,96.497,96.361,2.87390296]
[1644682211026,5.184,96.497,96.362,2.62390296]
[1644682211225,15.5545,96.57,96.37,15.5554]
[1644682211426,1.44068794,96.576,96.38,170.83]
[1644682211625,4.683,96.575,96.4,158.18]
[1644682211824,0.48,96.593,96.41,12.65]
[1644682212047,0.48,96.573,96.41,12.65]
[1644682212246,9.30169,96.592,96.29,7.0]
[1644682212247,0.48,96.503,96.361,2.62390296]
[1644682212447,41.71041222,96.501,96.34,12.65]
[1644682212648,5.184,96.5,96.341,5.184]
[1644682212846,41.71041222,96.501,96.341,113.80790296]
[1644682213046,5.184,96.5,96.342,29.70247066]
[1644682213247,41.71041222,96.501,96.39,15.5526]
[1644682213447,41.71041222,96.501,96.4,12.65]
[1644682213651,5.184,96.5,96.4,12.65]
[1644682213947,5.184,96.5,96.344,5.184]
[1644682213948,13.064,96.5,96.391,2.62390296]
[1644682214148,13.064,96.5,96.36,12.65]
[1644682214551,15.5664,96.49,96.36,15.27390296]
[1644682214848,15.5664,96.49,96.318,11.70952092]
[1644682214849,5.184,96.489,96.34,12.65]
[1644682215048,69.4096,96.489,96.34,12.65]
[1644682215353,5.184,96.488,96.341,17.99294974]
[1644682215550,5.184,96.488,96.341,19.41066559]
[1644682215749,43.50117724,96.479,96.306,17.99294974]
[1644682215950,5.187,96.478,96.342,2.62390296]
[1644682216349,5.187,96.478,96.264,16.69599356]
[1644682216350,0.48,96.453,96.292,2.62390296]
[1644682216548,5.188,96.452,96.292,2.62390296]
[1644682216750,0.48,96.443,96.292,2.62390296]
[1644682216953,0.48,96.423,96.273,2.62390296]
[1644682217154,5.189,96.422,96.274,4.06448]
[1644682217353,0.48,96.403,96.274,4.06448]
[1644682217551,34.97265924,96.401,96.274,4.06448]
[1644682217751,5.19,96.4,96.274,4.06448]
[1644682218152,34.97265924,96.401,96.275,2.62390296]
[1644682218353,5.19,96.399,96.276,4.0644]
[1644682218553,34.97265924,96.401,96.276,4.0644]
[1644682218554,34.97265924,96.401,96.29,12.65]
[1644682218755,5.19,96.4,96.291,4.06376]
[1644682218954,34.97265924,96.401,96.292,5.189]
[1644682219152,5.189,96.4,96.294,4.06364]
[1644682219753,34.97265924,96.401,96.295,2.62390296]
[1644682219953,5.189,96.399,96.297,4.06351]
[1644682220253,5.189,96.4,96.298,2.62390296]
[1644682220459,34.97265924,96.401,96.3,16.71338]
[1644682220855,34.97265924,96.401,96.301,0.25]
[1644682221056,5.189,96.4,96.303,4.06326]
[1644682221459,34.97265924,96.401,96.303,4.06326]
[1644682222057,34.97265924,96.401,96.304,2.62390296]
[1644682222363,34.97265924,96.401,96.306,4.06313]
[1644682222560,34.97265924,96.401,96.32,12.65]
[1644682222762,22.9209,96.429,96.321,9.2505]
[1644682222963,79.5225,96.451,96.321,42.22903391]
[1644682223261,79.5225,96.451,96.322,32.97853391]
[1644682223459,79.5225,96.451,96.323,5.187]
[1644682223661,34.71941301,96.45,96.323,37.03252855]
[1644682223862,34.71941301,96.45,96.324,2.62390296]
[1644682224060,34.71941301,96.45,96.33,15.5622]
[1644682224260,34.71941301,96.45,96.34,12.65]
[1644682224461,5.186,96.449,96.342,4.06161]
[1644682224660,34.71941301,96.45,96.342,4.06161]
[1644682224861,5.186,96.449,96.342,4.06161]
[1644682225160,1.44068794,96.428,96.342,4.06161]
[1644682225361,1.44068794,96.426,96.342,4.06161]
[1644682225769,39.26969077,96.427,96.342,4.06161]
[1644682226162,5.187,96.426,96.342,4.06161]
[1644682226361,1.44068794,96.423,96.342,4.06161]
[1644682226562,6.62768794,96.426,96.342,4.06161]
[1644682226763,1.44068794,96.425,96.342,4.06161]
[1644682226962,1.44068794,96.419,96.342,4.06161]
[1644682227161,39.26969077,96.427,96.342,4.06161]
[1644682227362,1.44068794,96.38,96.343,2.62390296]
[1644682227562,1.44068794,96.378,96.35,12.65]
[1644682227961,1.44068794,96.386,96.35,12.65]
[1644682228263,1.44068794,96.387,96.351,0.25]
[1644682228460,1.44068794,96.386,96.351,0.25]
[1644682229061,1.44068794,96.386,96.35,12.65]
[1644682229263,1.44068794,96.386,96.342,4.06161]
[1644682229264,1.44068794,96.379,96.342,4.06161]
[1644682229464,1.44068794,96.379,96.208,2.75354028]
[1644682229465,41.50180832,96.358,96.246,5.188]
[1644682229663,1.44068794,96.348,96.26,12.65]
[1644682229865,34.96303802,96.336,96.268,2.62390296]
[1644682230263,1.44068794,96.33,96.262,4.06499]
[1644682230464,1.44068794,96.327,96.252,2.62390296]
[1644682230662,1.44068794,96.325,96.25,12.65]
[1644682230868,34.96303802,96.336,96.25,12.65]
[1644682230869,1.44068794,96.322,96.25,12.65]
[1644682231062,1.44068794,96.319,96.25,12.65]
[1644682231467,38.07451384,96.321,96.251,2.62390296]
[1644682231664,38.07451384,96.321,96.251,0.12390296]
[1644682232064,38.07451384,96.321,96.252,2.62390296]
[1644682232264,1.44068794,96.319,96.25,12.65]
[1644682232465,1.44068794,96.317,96.251,0.25]
[1644682232664,13.02068794,96.317,96.25,12.65]
[1644682232864,11.58,96.317,96.23,12.65]
[1644682233064,11.58,96.317,96.231,4.0663]
[1644682233264,40.95360993,96.299,96.231,4.0663]
[1644682233469,6.63268794,96.298,96.231,6.69020296]
[1644682233664,1.44068794,96.294,96.231,4.0663]
[1644682233864,1.44068794,96.292,96.231,4.0663]
[1644682234064,1.44068794,96.291,96.231,4.0663]
[1644682234472,63.0,96.287,96.2,12.65]
[1644682234667,1.44068794,96.282,96.201,4.06757]
[1644682234969,45.06028594,96.28,96.201,4.06757]
[1644682235166,5.195,96.279,96.201,6.69147296]
[1644682235366,45.06028594,96.28,96.201,6.69147296]
[1644682236166,5.195,96.279,96.201,6.69147296]
[1644682236668,5.195,96.279,96.202,0.25]
[1644682236870,45.06028594,96.28,96.204,4.06744]
[1644682237069,5.195,96.278,96.204,4.06744]
[1644682237271,5.195,96.279,96.204,4.06744]
[1644682238373,45.06028594,96.28,96.204,4.06744]
[1644682238771,45.06028594,96.28,96.204,3.56744]
[1644682238971,5.195,96.279,96.204,3.56744]
[1644682239371,14.765,96.279,96.204,3.56744]
[1644682239970,14.765,96.279,96.19,12.65]
[1644682240171,9.57,96.279,96.19,12.65]
[1644682240375,45.06028594,96.28,96.175,2.62390296]
[1644682240572,5.196,96.278,96.175,2.62390296]
[1644682240778,5.196,96.278,96.14,12.65]
[1644682240779,0.48,96.263,96.14,12.65]
[1644682240972,0.48,96.233,96.141,4.0701]
[1644682241184,0.48,96.223,96.109,30.55771689]
[1644682241374,0.48,96.213,96.061,1.40264444]
[1644682241572,10.16,96.213,96.062,4.07345]
[1644682241771,41.44945434,96.206,96.062,4.07345]
[1644682241975,6.64068794,96.205,96.062,4.07345]
[1644682242171,1.44068794,96.203,96.063,16.44357689]
[1644682242372,5.2,96.202,96.065,4.07332]
[1644682242574,5.2,96.204,96.065,2.57332]
[1644682242771,53.06945434,96.206,96.065,2.57332]
[1644682242772,15.6113,96.2,96.065,2.57332]
[1644682242973,5.2,96.199,96.065,2.57332]
[1644682243676,0.48,96.193,96.065,2.57332]
[1644682243878,15.6131,96.19,96.065,2.57332]
[1644682244074,37.66491117,96.189,96.038,16.44357689]
[1644682244275,120.07811117,96.189,96.038,16.44357689]
[1644682244479,120.07811117,96.189,96.04,12.65]
[1644682244676,42.86691117,96.189,96.041,5.202]
[1644682244877,37.66491117,96.189,96.041,127.64557689]
[1644682245075,37.66491117,96.189,96.05,158.18]
[1644682245275,37.66491117,96.189,96.08,15.6061]
[1644682245478,37.66491117,96.189,96.09,12.65]
[1644682245701,37.66491117,96.189,96.08,15.6061]
[1644682246378,37.66491117,96.189,96.09,12.65]
[1644682246777,37.66491117,96.189,96.091,2.62390296]
[1644682247177,37.66491117,96.189,96.091,19.06747985]
[1644682247379,37.66491117,96.189,96.091,16.44357689]
[1644682247581,37.66491117,96.189,96.092,2.87390296]
[1644682247779,37.66491117,96.189,96.093,5.2]
[1644682248387,37.66491117,96.189,96.1,15.6028]
[1644682248586,37.66491117,96.189,96.1,28.2528]
[1644682249089,37.66491117,96.189,96.1,12.65]
[1644682249688,37.66491117,96.189,96.025,76.0603]
[1644682249689,5.2,96.188,96.08,12.65]
[1644682249889,5.2,96.188,96.073,0.25]
[1644682250290,5.2,96.188,96.053,10.97489931]
[1644682250492,5.2,96.188,96.054,5.2]
[1644682250690,106.0,96.187,96.05,12.65]
[1644682250892,5.2,96.186,96.05,12.65]
[1644682251091,5.2,96.186,96.03,12.65]
[1644682251294,146.057,96.185,96.03,12.65]
[1644682251596,0.48,96.173,96.03,12.65]
[1644682251793,0.48,96.163,96.007,16.44357689]
[1644682252093,0.48,96.153,96.007,16.44357689]
[1644682252294,44.19469373,96.151,96.007,16.44357689]
[1644682252491,5.204,96.15,96.007,16.44357689]
[1644682252894,15.6213,96.14,96.007,16.44357689]
[1644682253093,5.204,96.139,96.01,12.65]
[1644682253303,48.1696,96.149,96.011,5.204]
[1644682253504,5.204,96.148,96.011,16.44357689]
[1644682253903,5.204,96.148,96.012,16.44357689]
[1644682254111,106.0,96.139,95.992,16.44357689]
[1644682254304,12.65,96.13,95.992,16.44357689]
[1644682254503,44.84984014,96.128,95.992,16.44357689]
[1644682254703,44.84984014,96.128,95.978,10.97489931]
[1644682254907,5.205,96.127,95.978,10.97489931]
[1644682255103,15.6241,96.12,95.981,16.44357689]
[1644682255405,5.205,96.119,95.982,5.205]
[1644682255805,5.205,96.119,95.983,0.25]
[1644682256005,5.205,96.127,95.983,0.25]
[1644682256404,5.205,96.127,95.984,16.44357689]
[1644682256803,35.85886823,96.109,95.984,16.44357689]
[1644682257405,35.85886823,96.109,95.98,28.2725]
[1644682257607,5.205,96.108,95.964,16.44357689]
[1644682257805,5.205,96.108,95.965,5.206]
[1644682258006,5.205,96.108,95.97,12.65]
[1644682258204,15.6271,96.1,95.971,5.206]
[1644682258406,35.85886823,96.109,95.971,5.206]
[1644682258704,35.85886823,96.109,95.972,2.87390296]
[1644682258705,5.206,96.108,95.972,2.87390296]